{"text_format":"1","workbook":"xlsx","n_sheets":3,"sheets":["Deployment information","Predefined lists","Deployment file Ids "],"not_rendered":{"charts":0,"images":0,"macros":1,"external_links":0,"defined_names":19,"comments":0,"pivot_tables":0},"unopened":[],"bounds":{"document_bytes":16777216,"sheet_cells":100000,"rows_first":2000,"rows_last":500,"rows_between":2000,"halvings":0,"cell_chars":16384,"cell_head_chars":4096},"cells_cut":0,"cells_raw":0,"read":"whole","date_system":"1900"}

{"sheet":"Deployment information","index":0,"n_rows":209,"n_cols":22,"rows_kept":209,"cut":false,"hidden":false,"merged":[]}
["Id","SECTION","DIM LEVEL","KEY","VALUE","DEFAULT VALUE","UNIT","SHORT NAME","DESCRIPTION",null,null,null,null,null,"PLATFORM_CODE","TECH_PARAMETER_ID","DIM_LEVEL","PARAMETER_VALUE","TECH_PARAMETER_CODE"]
[10,null,null,null,null,null,null,null,null,null,null,null,null,null,{"$f":"$E$20","v":6903245},null,null,{"$f":"IF(ISBLANK(E2),\"\",E2)","v":""}]
[10,"TITLE",1,"TITLE","ARVOR-I",null,null,"Title of the deployment file",null,null,null,null,null,null,{"$f":"$E$20","v":6903245},390,{"$f":"C3","v":1},"ARVOR-I","PLATFORM_MODEL"]
[10,null,null,null,null,null,null,null,null,null,null,null,null,null,6903245,null,null,""]
[10,"ARGO PROJECT INFORMATION",1,"PI_NAME","Pierre-Marie Poulain",null,null,"Name of the Principal Investigator of the float",null,null,null,null,null,null,6903245,394,{"$f":"C5","v":1},{"$f":"IF(ISBLANK(E5),\"\",E5)","v":"Pierre-Marie Poulain"},"PI_NAME"]
[10,"ARGO PROJECT INFORMATION",1,"PROJECT_NAME","Argo Italy",null,null,"Name of the project which operates the profiling float",null,null,null,null,null,null,6903245,15,1,"Argo Italy","PR_EXPERIMENT_ID"]
[10,"ARGO PROJECT INFORMATION",1,"FLOAT_OWNER","OGS",null,null,"The owner of the float (may be different from the data centre and operating institution)",null,null,null,null,null,null,6903245,1257,1,"OGS","FLOAT_OWNER"]
[10,"ARGO PROJECT INFORMATION",1,"OPERATING_INSTITUTION","OGS",null,null,"The operating institution of the float (may be different from the float owner and data centre)",null,null,null,null,null,null,6903245,1258,1,"OGS","OPERATING_INSTITUTION"]
[10,null,null,null,null,null,null,null,null,null,null,null,null,null,6903245,null,null,""]
[10,"PLATFORM INFORMATION",1,"PLATFORM_FAMILY","FLOAT",null,null,"Category of instrument",null,null,null,null,null,null,6903245,2081,1,"FLOAT","PLATFORM_FAMILY"]
[10,"PLATFORM INFORMATION",1,"PLATFORM_TYPE","ARVOR",null,null,"Type of float",null,null,null,null,null,null,6903245,2209,1,"ARVOR","PLATFORM_TYPE"]
[10,"PLATFORM INFORMATION",1,"WMO_INST_TYPE ",null,null,null,"Instrument type from WMO code table 1770",null,null,null,null,null,null,6903245,13,1,"","PR_PROBE_CODE"]
[10,"PLATFORM INFORMATION",1,"PLATFORM_MAKER","NKE",null,null,"Name of the manufacturer",null,null,null,null,null,null,6903245,391,1,"NKE","PLATFORM_MAKER"]
[10,"PLATFORM INFORMATION",1,"BATTERY_TYPE","Lithium",null,null,"Describes the type of battery packs in the float",null,null,null,null,null,null,6903245,1248,1,"Lithium","BATTERY_TYPE"]
[10,"PLATFORM INFORMATION",1,"BATTERY_PACKS","2 WILPA1621A",null,null,"Configuration of battery packs",null,null,null,null,null,null,6903245,1249,1,"2 WILPA1621A","BATTERY_PACKS"]
[10,"PLATFORM INFORMATION",1,"FLOAT_SAIL_ID","18EU017",null,null,"Float sail ID",null,null,null,null,null,null,6903245,2082,1,"18EU017","FLOAT_SAIL_ID"]
[10,"PLATFORM INFORMATION",1,"FLOAT_SERIAL_NUMBER","AI2600-18EU017",null,null,"Float serial number",null,null,null,null,null,null,6903245,392,1,"AI2600-18EU017","INST_REFERENCE"]
[10,"PLATFORM INFORMATION",1,"CONTROLLER_BOARD_TYPE_PRIMARY","I535",null,null,"Describes the type of controller board",null,null,null,null,null,null,6903245,1250,{"$f":"IF(ISBLANK(C18),\"\",C18)","v":1},"I535","CONTROLLER_BOARD_TYPE_PRIMARY"]
[10,"PLATFORM INFORMATION",1,"CONTROLLER_BOARD_SERIAL_NO_PRIMARY","C157946-0049",null,null,"The serial number for the primary controller board",null,null,null,null,null,null,6903245,1252,1,"C157946-0049","CONTROLLER_BOARD_SERIAL_NO_PRIMA"]
[10,"PLATFORM INFORMATION",1,"WMO_NUMBER",6903245,null,null,"Float WMO number",null,null,null,null,null,null,6903245,null,1,6903245]
[10,"PLATFORM INFORMATION",1,"IMEI",300234065966580,null,null,"Float Argos Id (decimal)",null,null,null,null,null,null,6903245,384,1,300234065966580,"PTT"]
[10,"PLATFORM INFORMATION",1,"BLUETOOTH_NUMBER","2017 12 0049 ",null,null,"Float bluetooth number",null,null,null,null,null,null,6903245,2085,1,"2017 12 0049 ","BLUETOOTH_NUMBER"]
[10,"PLATFORM INFORMATION",1,"FIRMWARE_VERSION","5900A04",null,null,"Float firmware version",null,null,null,null,null,null,6903245,961,1,"5900A04","FIRMWARE_VERSION"]
[10,"PLATFORM INFORMATION",1,"STANDARD_FORMAT_ID ",null,null,null,"Standardised format number as described in the online reference table: http://tinyurl.com/qy7fdqc ",null,null,null,null,null,null,6903245,1246,1,"","STANDARD_FORMAT_ID"]
[10,"PLATFORM INFORMATION",1,"MANUAL_VERSION ",null,null,null,"Float manual version date or number",null,null,null,null,null,null,6903245,1244,1,"","MANUAL_VERSION"]
[10,"PLATFORM INFORMATION",1,"FIRMWARE_CHECKSUM",null,null,null,"Firmware checksum (copy of PRE_DEPLOY_FIRMWARE_CHECKSUM parameter value)",null,null,null,null,null,null,6903245,2086,1,null,"FIRMWARE_CHECKSUM"]
[10,"PLATFORM INFORMATION",1,"CORIOLIS_DECODER_VERSION",null,null,null,"Coriolis decoder version",null,null,null,null,null,null,6903245,2,1,"","PR_VERSION"]
[10,null,null,null,null,null,null,null,null,null,null,null,null,null,6903245,null,null,""]
[10,"DEPLOYMENT CHECKS",1,"DEPLOY_VISUAL_CHECK","OK",null,null,"Comment after visual inspection of the float",null,null,null,null,null,null,6903245,2087,{"$f":"C29","v":1},"OK","DPLY_FLOAT_VISUAL_CHECK_CMT"]
[10,"DEPLOYMENT CHECKS",1,"DEPLOY_BALLAST_CHECK","OK",null,null,"Comment after visual inspection of the ballast",null,null,null,null,null,null,6903245,2088,{"$f":"C30","v":1},"OK","DPLY_BALLAST_VISUAL_CHECK_CMT"]
[10,"DEPLOYMENT INFORMATION",1,"DEPLOY_MISSION","Eastern Mediterranean Sea",null,null,"Deployment mission name (cruise name)",null,null,null,null,null,null,6903245,429,1,"Eastern Mediterranean Sea","CRUISE_NAME"]
[10,"DEPLOYMENT INFORMATION",1,"DEPLOY_SHIP","N/O ATALANTE",null,null,"Deployment ship name",null,null,null,null,null,null,6903245,399,1,"N/O ATALANTE","DEPLOY_PLATFORM"]
[10,"DEPLOYMENT INFORMATION",1,"DEPLOY_OPERATOR_NAME","BLEUNVEN",null,null,"Name of the operator in charge of the deployment",null,null,null,null,null,null,6903245,2097,1,"BLEUNVEN","DPLY_OPERATOR_NAME"]
[10,"DEPLOYMENT INFORMATION",1,"DEPLOY_PROFILE_DONE","no",null,null,"CTD or XBT profile done during deployment (yes/no)",null,null,null,null,null,null,6903245,401,1,"no","DEPLOY_AVAILABLE_PROFILE_ID"]
[10,"DEPLOYMENT INFORMATION",1,"DEPLOY_MAGNET_REMOVAL_TIME","2018-10-18T04:31:00",null,null,"Magnet removal  time (dd/mm/yyyy hh:mm)",null,null,null,null,null,null,6903245,2089,1,"2018-10-18T04:31:00","STARTUP_DATE"]
[10,"DEPLOYMENT INFORMATION",1,"DEPLOY_FLOAT_INTERNAL_CHECK","OK",null,null,"Comment on float internal checks (valve and pump actions, argos transmission check) ",null,null,null,null,null,null,6903245,2275,{"$f":"C36","v":1},"OK","DPLY_FLOAT_INTERNAL_CHECK_CMT"]
[10,"DEPLOYMENT INFORMATION",1,"DEPLOY_TIME","2018-10-18T04:35:00",null,null,"Deployment time ( dd/mm/yyyy hh:mm )",null,null,null,null,null,null,6903245,8,1,"2018-10-18T04:35:00","PR_LAUNCH_DATETIME"]
[10,"DEPLOYMENT INFORMATION",1,"DEPLOY_LATITUDE","34°12.360' N",null,null,"Deployment latitude (dd°mm,mm N/S or dd°mm'ss\" N/S)",null,null,null,null,null,null,6903245,9,1,34.206000000000003,"PR_LAUNCH_LATITUDE"]
[10,"DEPLOYMENT INFORMATION",1,"DEPLOY_LONGITUDE","026°03.050' E",null,null,"Deployment longitude  (ddd°mm,mm E/W or ddd°mm'ss\" E/W)",null,null,null,null,null,null,6903245,10,1,26.050799999999999,"PR_LAUNCH_LONGITUDE"]
[10,"DEPLOYMENT INFORMATION",1,"DEPLOY_BUOYANCY","OK",null,null,"Buoyancy description",null,null,null,null,null,null,6903245,2096,1,"OK","DPLY_BUOYANCY_DESCRIPTION"]
[10,"DEPLOYMENT INFORMATION",1,"DEPLOY_METHOD","MANUAL",null,null,"Deployment method (release box, manual, expendable cardboard, etc…)",null,null,null,null,null,null,6903245,2098,1,"MANUAL","DPLY_METHOD"]
[10,"DEPLOYMENT INFORMATION",1,"DEPLOY_HEIGHT",4,null,null,"Deployment height (m)",null,null,null,null,null,null,6903245,2276,1,4,"DPLY_HEIGHT"]
[10,"DEPLOYMENT INFORMATION",1,"DEPLOY_SHIP_SPEED",1,null,null,"Ship speed (kts)",null,null,null,null,null,null,6903245,2277,1,1,"DPLY_SHIP_SPEED"]
[10,"DEPLOYMENT INFORMATION",1,"DEPLOY_WIND_SPEED",2,null,null,"Wind speed (Beaufort)",null,null,null,null,null,null,6903245,2278,1,2,"DPLY_WIND_SPEED"]
[10,"DEPLOYMENT INFORMATION",1,"DEPLOY_SEA_STATE","Smooth (0.1 to 0.5 m)",null,null,"Sea state (calm, smooth, slight, moderate, rough, very rough, high, very high, phenomenal)",null,null,null,null,null,null,6903245,2279,1,"Smooth (0.1 to 0.5 m)","DPLY_SEA_STATE"]
[10,"DEPLOYMENT INFORMATION",1,"DEPLOY_BATHYMETRY",2621,null,null,"Bathymetry at deployment position (m)",null,null,null,null,null,null,6903245,290,1,2621,"BATHY"]
[10,"DEPLOYMENT INFORMATION",1,"DEPLOY_NB_DAYS_UNTIL_FIRST_ASCENDING_PROFILE",1,null,null,"Number of days until the first ascending profile (copy of the PM2 parameter value)",null,null,null,null,null,null,6903245,null,{"$f":"C47","v":1},1]
[10,"DEPLOYMENT INFORMATION",1,"DEPLOY_COMMENT",null,null,null,"Miscellaneous comment on the deployment",null,null,null,null,null,null,6903245,2099,1,null,"DPLY_CMT"]
[10,null,null,"           ",null,null,null,null,null,null,null,null,null,null,6903245]
[10,"SENSOR INFORMATION",1,"SENSOR","CTD_PRES",null,null,"Sensor name",null,null,null,null,null,null,6903245,408,{"$f":"C50","v":1},"CTD_PRES","SENSOR"]
[10,"SENSOR INFORMATION",1,"SENSOR_MAKER","DRUCK",null,null,"Sensor manufacturer",null,null,null,null,null,null,6903245,409,1,"DRUCK","SENSOR_MAKER"]
[10,"SENSOR INFORMATION",1,"SENSOR_MODEL","DRUCK_2900PSIA   ",null,null,"Sensor model",null,null,null,null,null,null,6903245,410,1,"DRUCK_2900PSIA   ","SENSOR_MODEL"]
[10,"SENSOR INFORMATION",1,"SENSOR_SERIAL_NUMBER",10818336,null,null,"Sensor serial number",null,null,null,null,null,null,6903245,411,1,10818336,"SENSOR_SERIAL_NO"]
[10,"SENSOR INFORMATION",2,"SENSOR","CTD_TEMP",null,null,"Sensor name",null,null,null,null,null,null,6903245,408,2,"CTD_TEMP","SENSOR"]
[10,"SENSOR INFORMATION",2,"SENSOR_MAKER","SBE",null,null,"Sensor manufacturer",null,null,null,null,null,null,6903245,409,2,"SBE","SENSOR_MAKER"]
[10,"SENSOR INFORMATION",2,"SENSOR_MODEL","SBE41CP",null,null,"Sensor model",null,null,null,null,null,null,6903245,410,2,"SBE41CP","SENSOR_MODEL"]
[10,"SENSOR INFORMATION",2,"SENSOR_SERIAL_NUMBER",10498,null,null,"Sensor serial number",null,null,null,null,null,null,6903245,411,2,10498,"SENSOR_SERIAL_NO"]
[10,"SENSOR INFORMATION",3,"SENSOR","CTD_CNDC",null,null,"Sensor name",null,null,null,null,null,null,6903245,408,3,"CTD_CNDC","SENSOR"]
[10,"SENSOR INFORMATION",3,"SENSOR_MAKER","SBE",null,null,"Sensor manufacturer",null,null,null,null,null,null,6903245,409,3,"SBE","SENSOR_MAKER"]
[10,"SENSOR INFORMATION",3,"SENSOR_MODEL","SBE41CP",null,null,"Sensor model",null,null,null,null,null,null,6903245,410,3,"SBE41CP","SENSOR_MODEL"]
[10,"SENSOR INFORMATION",3,"SENSOR_SERIAL_NUMBER",10498,null,null,"Sensor serial number",null,null,null,null,null,null,6903245,411,3,10498,"SENSOR_SERIAL_NO"]
[10,null,null,null,null,null,null,null,null,null,null,null,null,null,6903245,null,null,""]
[10,"PARAMETER INFORMATION",1,"PARAMETER","PRES",null,null,"Parameter name",null,null,null,null,null,null,6903245,415,{"$f":"C63","v":1},"PRES","PARAMETER"]
[10,"PARAMETER INFORMATION",1,"PARAMETER_SENSOR","CTD_PRES",null,null,"Name of the sensor that measures the parameter",null,null,null,null,null,null,6903245,2100,{"$f":"C64","v":1},"CTD_PRES","PARAMETER_SENSOR"]
[10,"PARAMETER INFORMATION",1,"PARAMETER_UNITS","decibar",null,null,"Units of accuracy and resolution of the parameter",null,null,null,null,null,null,6903245,2206,{"$f":"C65","v":1},"decibar","PARAMETER_UNITS"]
[10,"PARAMETER INFORMATION",1,"PARAMETER_ACCURACY",2.4,null,null,"Accuracy of the parameter",null,null,null,null,null,null,6903245,2207,1,{"$f":"IF(ISBLANK(E66),\"\",E66)","v":2.4},"PARAMETER_ACCURACY"]
[10,"PARAMETER INFORMATION",1,"PARAMETER_RESOLUTION",0.1,null,null,"Resolution of the parameter",null,null,null,null,null,null,{"$f":"$E$20","v":6903245},2208,1,0.1,"PARAMETER_RESOLUTION"]
[10,"PARAMETER INFORMATION",1,"PREDEPLOYMENT_CALIB_EQUATION",null,null,null,"Calibration equation for this parameter",null,null,null,null,null,null,6903245,416,1,"","PREDEPLOYMENT_CALIB_EQUATION"]
[10,"PARAMETER INFORMATION",1,"PREDEPLOYMENT_CALIB_COEFFICIENT",null,null,null,"Calibration coefficients for this equation",null,null,null,null,null,null,6903245,417,1,"","PREDEPLOYMENT_CALIB_COEFFICIENT"]
[10,"PARAMETER INFORMATION",1,"PREDEPLOYMENT_CALIB_COMMENT",null,null,null,"Comments applying to this parameter calibration",null,null,null,null,null,null,6903245,418,1,"","PREDEPLOYMENT_CALIB_COMMENT"]
[10,"PARAMETER INFORMATION",2,"PARAMETER","TEMP",null,null,"Parameter name",null,null,null,null,null,null,6903245,415,2,"TEMP","PARAMETER"]
[10,"PARAMETER INFORMATION",2,"PARAMETER_SENSOR","CTD_TEMP",null,null,"Name of the sensor that measures the parameter",null,null,null,null,null,null,6903245,2100,2,"CTD_TEMP","PARAMETER_SENSOR"]
[10,"PARAMETER INFORMATION",2,"PARAMETER_UNITS","degree_Celsius",null,null,"Units of accuracy and resolution of the parameter",null,null,null,null,null,null,6903245,2206,2,"degree_Celsius","PARAMETER_UNITS"]
[10,"PARAMETER INFORMATION",2,"PARAMETER_ACCURACY",2E-3,null,null,"Accuracy of the parameter",null,null,null,null,null,null,6903245,2207,2,2E-3,"PARAMETER_ACCURACY"]
[10,"PARAMETER INFORMATION",2,"PARAMETER_RESOLUTION",1E-3,null,null,"Resolution of the parameter",null,null,null,null,null,null,6903245,2208,2,1E-3,"PARAMETER_RESOLUTION"]
[10,"PARAMETER INFORMATION",2,"PREDEPLOYMENT_CALIB_EQUATION",null,null,null,"Calibration equation for this parameter",null,null,null,null,null,null,6903245,416,2,"","PREDEPLOYMENT_CALIB_EQUATION"]
[10,"PARAMETER INFORMATION",2,"PREDEPLOYMENT_CALIB_COEFFICIENT",null,null,null,"Calibration coefficients for this equation",null,null,null,null,null,null,6903245,417,2,"","PREDEPLOYMENT_CALIB_COEFFICIENT"]
[10,"PARAMETER INFORMATION",2,"PREDEPLOYMENT_CALIB_COMMENT",null,null,null,"Comments applying to this parameter calibration",null,null,null,null,null,null,6903245,418,2,"","PREDEPLOYMENT_CALIB_COMMENT"]
[10,"PARAMETER INFORMATION",3,"PARAMETER","PSAL",null,null,"Parameter name",null,null,null,null,null,null,6903245,415,3,"PSAL","PARAMETER"]
[10,"PARAMETER INFORMATION",3,"PARAMETER_SENSOR","CTD_CNDC",null,null,"Name of the sensor that measures the parameter",null,null,null,null,null,null,6903245,2100,3,"CTD_CNDC","PARAMETER_SENSOR"]
[10,"PARAMETER INFORMATION",3,"PARAMETER_UNITS","mS.cm-1",null,null,"Units of accuracy and resolution of the parameter",null,null,null,null,null,null,6903245,2206,3,"mS.cm-1","PARAMETER_UNITS"]
[10,"PARAMETER INFORMATION",3,"PARAMETER_ACCURACY",5.0000000000000001E-3,null,null,"Accuracy of the parameter",null,null,null,null,null,null,6903245,2207,3,5.0000000000000001E-3,"PARAMETER_ACCURACY"]
[10,"PARAMETER INFORMATION",3,"PARAMETER_RESOLUTION",1E-3,null,null,"Resolution of the parameter",null,null,null,null,null,null,6903245,2208,3,1E-3,"PARAMETER_RESOLUTION"]
[10,"PARAMETER INFORMATION",3,"PREDEPLOYMENT_CALIB_EQUATION",null,null,null,"Calibration equation for this parameter",null,null,null,null,null,null,6903245,416,3,"","PREDEPLOYMENT_CALIB_EQUATION"]
[10,"PARAMETER INFORMATION",3,"PREDEPLOYMENT_CALIB_COEFFICIENT",null,null,null,"Calibration coefficients for this equation",null,null,null,null,null,null,6903245,417,3,"","PREDEPLOYMENT_CALIB_COEFFICIENT"]
[10,"PARAMETER INFORMATION",3,"PREDEPLOYMENT_CALIB_COMMENT",null,null,null,"Comments applying to this parameter calibration",null,null,null,null,null,null,6903245,418,{"$f":"C86","v":3},"","PREDEPLOYMENT_CALIB_COMMENT"]
[10,null,null,null,null,null,null,null,null,null,null,null,null,null,6903245,null,null,""]
[10,"MISSION CONFIGURATION PARAMETERS",1,"MC0",500,300,null,"Total Number of Cycles",null,null,null,null,null,null,6903245,2063,{"$f":"C88","v":1},500,"CONFIG_MaxCycles_NUMBER"]
[10,"MISSION CONFIGURATION PARAMETERS",1,"MC1",500,300,null,"Number of cycle with “Cycle Period 1”",null,null,null,null,null,null,6903245,2270,1,500,"NB_CYCLE_FIRST_MISSION"]
[10,"MISSION CONFIGURATION PARAMETERS",1,"MC2",120,240,"hours","Cycle Period 1",null,null,null,null,null,null,6903245,420,1,120,"CYCLE_TIME"]
[10,"MISSION CONFIGURATION PARAMETERS",1,"MC3",120,240,"hours","Cycle Period 2",null,null,null,null,null,null,6903245,420,2,120,"CYCLE_TIME"]
[10,"MISSION CONFIGURATION PARAMETERS",1,"MC4",1,2,"internal day number","Reference Day",null,null,null,null,null,null,6903245,353,1,1,"PRCFG_Reference_day"]
[10,"MISSION CONFIGURATION PARAMETERS",1,"MC5",6,6,"hour","Estimated time at the surface",null,null,null,null,null,null,6903245,662,1,6,"PRCFG_End_time"]
[10,"MISSION CONFIGURATION PARAMETERS",1,"MC6",30,0,"minutes","Delay Before Mission",null,null,null,null,null,null,6903245,1353,1,30,"DELAY_BEFORE_MISSION"]
[10,"MISSION CONFIGURATION PARAMETERS",1,"MC7",1,1,null,"CTD sampling mode (1=Continuous, 2=Eco, 3=Mixed, 4=Spot sampling)",null,null,null,null,null,null,6903245,941,1,1,"PRCFG_Acquisition_mode"]
[10,"MISSION CONFIGURATION PARAMETERS",1,"MC8",0,0,"seconds","Descent CTD sampling period",null,null,null,null,null,null,6903245,1354,1,0,"DESC_PROFILE_PERIOD"]
[10,"MISSION CONFIGURATION PARAMETERS",1,"MC9",12,12,"hours","Drift CTD sampling period",null,null,null,null,null,null,6903245,7,1,{"$f":"IF(ISBLANK(E97),\"\",E97*60)","v":720},"PR_IMMERSION_DRIFT_PERIOD"]
[10,"MISSION CONFIGURATION PARAMETERS",1,"MC10",10,10,"seconds","Ascent CTD sampling period",null,null,null,null,null,null,6903245,1355,{"$f":"C98","v":1},10,"ASC_PROFILE_PERIOD"]
[10,"MISSION CONFIGURATION PARAMETERS",1,"MC11",350,1000,"decibars","Drift pressure 1",null,null,null,null,null,null,6903245,425,1,350,"PARKING_PRESSURE"]
[10,"MISSION CONFIGURATION PARAMETERS",1,"MC12",2000,2000,"decibars","Profile pressure 1",null,null,null,null,null,null,6903245,426,1,2000,"DEEPEST_PRESSURE"]
[10,"MISSION CONFIGURATION PARAMETERS",1,"MC13",350,1000,"decibars","Drift pressure 2",null,null,null,null,null,null,6903245,425,2,350,"PARKING_PRESSURE"]
[10,"MISSION CONFIGURATION PARAMETERS",1,"MC14",2000,2000,"decibars","Profile pressure 2",null,null,null,null,null,null,6903245,426,2,2000,"DEEPEST_PRESSURE"]
[10,"MISSION CONFIGURATION PARAMETERS",1,"MC15",2,1,null,"Alternate cycle number (1=not used, x=1/x alternated profile)",null,null,null,null,null,null,6903245,942,1,2,"PRCFG_Alternate_profile_period"]
[10,"MISSION CONFIGURATION PARAMETERS",1,"MC16",700,2000,"decibars","Alternate profile pressure",null,null,null,null,null,null,6903245,943,1,700,"PRCFG_Alternate_profile_depth"]
[10,"MISSION CONFIGURATION PARAMETERS",1,"MC17",100,10,"decibars","Threshold surface/Intermediate Pressure",null,null,null,null,null,null,6903245,1356,1,100,"INT_SURF_THRESHOLD"]
[10,"MISSION CONFIGURATION PARAMETERS",1,"MC18",700,200,"decibars","Threshold Intermediate /bottom Pressure",null,null,null,null,null,null,6903245,1357,1,700,"DEPTH_INT_THRESHOLD"]
[10,"MISSION CONFIGURATION PARAMETERS",1,"MC19",2,1,"decibars","Thickness of the surface slices",null,null,null,null,null,null,6903245,1358,1,2,"SURF_SLICE_THICKNESS"]
[10,"MISSION CONFIGURATION PARAMETERS",1,"MC20",10,10,"decibars","Thickness of the intermediate slices",null,null,null,null,null,null,6903245,1359,1,10,"INT_SLICE_THICKNESS"]
[10,"MISSION CONFIGURATION PARAMETERS",1,"MC21",25,25,"decibars","Thickness of the bottom slices",null,null,null,null,null,null,6903245,1360,1,25,"DEPTH_SLICE_THICKNESS"]
[10,"MISSION CONFIGURATION PARAMETERS",1,"MC22",60,60,"minutes","Iridium End of Life Period",null,null,null,null,null,null,6903245,924,1,60,"PRCFG_EOL_trans_period"]
[10,"MISSION CONFIGURATION PARAMETERS",1,"MC23",0,0,"minutes","Time between 1st&2nd Iridium session(0=no 2nd session)",null,null,null,null,null,null,6903245,2263,1,0,"SECOND_IRIDIUM_SESSION_DELAY"]
[10,"MISSION CONFIGURATION PARAMETERS",1,"MC24",0,0,null,"Grounding mode (0=Shift, 1=Stay grounded)",null,null,null,null,null,null,6903245,936,1,0,"PRCFG_Grounded_mode"]
[10,"MISSION CONFIGURATION PARAMETERS",1,"MC25",100,50,"decibars","Grounding shift",null,null,null,null,null,null,6903245,939,1,100,"PRCFG_Grounded_reduction_pres"]
[10,"MISSION CONFIGURATION PARAMETERS",1,"MC26",30,1,"minutes","Wait at surface if grounding",null,null,null,null,null,null,6903245,2256,1,30,"RETRY_DELAY_IF_STUCK_AT_SURFACE"]
[10,"MISSION CONFIGURATION PARAMETERS",1,"MC27",0,0,null,"Optode type (0=no optode, 1=4330, 2=3830, 3=ext. sensor)",null,null,null,null,null,null,6903245,1596,1,0,"OptodeType"]
[10,"MISSION CONFIGURATION PARAMETERS",1,"MC28",2,5,"decibars","CTD CutOff pressure",null,null,null,null,null,null,6903245,1910,1,2,"CTD_CUT_OFF_PRESSURE"]
[10,"MISSION CONFIGURATION PARAMETERS",1,"MC29",0,0,null,"In air acq.: Periodicity of in air measurement (0=no acq., 1=acq. on each cycle, x=acq. on 1/x cycle)",null,null,null,null,null,null,6903245,2342,1,0,"IN_AIR_MEAS_PERIODICITY"]
[10,"MISSION CONFIGURATION PARAMETERS",1,"MC30",30,30,"seconds","In air acq.: Sampling period",null,null,null,null,null,null,6903245,2343,1,30,"IN_AIR_MEAS_SAMPLING_PERIOD"]
[10,"MISSION CONFIGURATION PARAMETERS",1,"MC31",5,5,"minutes","In air acq.: Acquisition duration",null,null,null,null,null,null,6903245,2344,1,5,"IN_AIR_MEAS_PHASE_DURATION"]
[10,null,null,null,null,null,null,null,null,null,null,null,null,null,6903245,null,null,""]
[10,"MISSION TECHNICAL PARAMETERS",1,"TC0",800,800," centisec","Durée maxi d'activation ev en surface (utilisée pour P < palier1)","durée maxi d'activation ev en surface (utilisée pour P< palier1) *",null,null,null,null,null,6903245,926,{"$f":"C121","v":1},800,"PRCFG_Surf_valve_max_duration"]
[10,"MISSION TECHNICAL PARAMETERS",1,"TC1",11,11," cm3","Volume transféré par l'ev maxi autorisé en profondeur","volume transféré par l'ev maxi autorisé en profondeur *",null,null,null,null,null,6903245,927,1,11,"PRCFG_Depth_valve_max_volume"]
[10,"MISSION TECHNICAL PARAMETERS",1,"TC2",290,290," centisec","Durée maxi d'activation pompe en profondeur","durée maxi d'activation pompe en profondeur *",null,null,null,null,null,6903245,928,1,290,"PRCFG_Depth_pump_max_duration"]
[10,"MISSION TECHNICAL PARAMETERS",1,"TC3",720,720," centisec","Durée maxi d'activation pompe en remontée","durée maxi d'activation pompe en remontée *",null,null,null,null,null,6903245,929,1,720,"PRCFG_Asc_pump_max_duration"]
[10,"MISSION TECHNICAL PARAMETERS",1,"TC4",28000,24000," centisec","Durée nominale d'activation pompe en émergence","durée nominale d'activation pompe en émergence",null,null,null,null,null,6903245,930,1,28000,"PRCFG_Surf_pump_duration"]
[10,"MISSION TECHNICAL PARAMETERS",1,"TC5",30,30,"decibars","Tolérance sur l'atteinte de la pression de consigne (+/-)","tolérance sur l'atteinte de la pression de consigne (+/-)",null,null,null,null,null,6903245,931,1,30,"PRCFG_Gap_order_go_delta_pres"]
[10,"MISSION TECHNICAL PARAMETERS",1,"TC6",2100,2100,"decibars","Pression maxi à ne pas dépasser","pression maxi à ne pas dépasser",null,null,null,null,null,6903245,932,1,2100,"PRCFG_Max_pressure"]
[10,"MISSION TECHNICAL PARAMETERS",1,"TC7",1,1,"decibars","Pression de début de réduction de la durée d'activation ev en surface","pression de début de réduction de la durée d'activation ev en surface *",null,null,null,null,null,6903245,933,1,1,"PRCFG_Surf_valve_start_pressure"]
[10,"MISSION TECHNICAL PARAMETERS",1,"TC8",7,7,"decibars","Critère de pression de début de plongée","critère de pression de début de plongée *",null,null,null,null,null,6903245,934,1,7,"PRCFG_Descent_start_pressure"]
[10,"MISSION TECHNICAL PARAMETERS",1,"TC9",2,2,null,"Nbre de positions hors tolérance autorisé en dérive conduisant à repositionnement","nbre de positions hors tolérance autorisé en dérive conduisant à repositionnement",null,null,null,null,null,6903245,935,1,{"$f":"IF(ISBLANK(E130),\"\",E130)","v":2},"PRCFG_Gap_order_delta_position"]
[10,"MISSION TECHNICAL PARAMETERS",1,"TC10",36,36," cm3","Critère d'échouage: volume cumulé","critère d'échouage: volume cumulé *",null,null,null,null,null,6903245,937,1,36,"PRCFG_Grounded_volume"]
[10,"MISSION TECHNICAL PARAMETERS",1,"TC11",200,200,"decibars","Pression en dessous de laquelle le flotteur reste posé en attente profil remontée","pression en dessous de laquelle le flotteur reste posé en attente profil remontée",null,null,null,null,null,6903245,938,1,200,"PRCFG_Grounded_waiting_pres"]
[10,"MISSION TECHNICAL PARAMETERS",1,"TC12",50,50,"decibars","Tolérance sur maintien de la pression de consigne (+/-)","tolérance sur maintien de la pression de consigne (+/-)",null,null,null,null,null,6903245,940,1,50,"PRCFG_Gap_order_keep_delta_pres"]
[10,"MISSION TECHNICAL PARAMETERS",1,"TC13",25,25," mm/sec","Vitesse moyenne descente","vitesse moyenne descente (mm/s)",null,null,null,null,null,6903245,944,{"$f":"C134","v":1},25,"PRCFG_Descent_speed"]
[10,"MISSION TECHNICAL PARAMETERS",1,"TC14",0,0,"decibars","Incrément de profondeur de consigne à chaque cycle","incrément de profondeur de consigne à chaque cycle",null,null,null,null,null,6903245,945,1,0,"PRCFG_Imm_increment_pressure"]
[10,"MISSION TECHNICAL PARAMETERS",1,"TC15",10,10,"decibars","Pression de fin de remontée.",null,null,null,null,null,null,6903245,2258,1,10,"ASCENT_END_THRESHOLD"]
[10,"MISSION TECHNICAL PARAMETERS",1,"TC16",90,90," mm/s","Vitesse moyenne de remontée.",null,null,null,null,null,null,6903245,1604,1,90,"AverageAscentSpeed"]
[10,"MISSION TECHNICAL PARAMETERS",1,"TC17",2,2,"minutes","Période de mesure de la pression en remontée (période du contrôle de la vitesse de remontée).",null,null,null,null,null,null,6903245,2166,1,2,"PRES_CHECK_TIME_ASCENT"]
[10,"MISSION TECHNICAL PARAMETERS",1,"TC18",10,10,"decibars","Ecart de pression pour stabilisation en remontée (tous les TC17, si |DP|  < TC18 => action de pompe).",null,null,null,null,null,null,6903245,2167,1,10,"ASCENT_STABILIZATION_PRES"]
[10,"MISSION TECHNICAL PARAMETERS",1,"TC19",36,45,"minutes","GPS session duration",null,null,null,null,null,null,6903245,2334,1,36,"GPSTimeout"]
[10,"MISSION TECHNICAL PARAMETERS",1,"TC20",1,1,null,"Transmission message hydraulique (0 non, 1 oui).",null,null,null,null,null,null,6903245,2259,1,1,"HYDRAULIC_DATA_TRANSMISSION"]
[10,"MISSION TECHNICAL PARAMETERS",1,"TC21",0,0,"minutes","Delay before resetoffset",null,null,null,null,null,null,6903245,2318,1,0,"DELAY_BEFORE_RESETOFFSET_CMD"]
[10,"MISSION TECHNICAL PARAMETERS",1,"TC22",33000,30000," centisec","Duration Pump during for surfacing with “In Air Acqu”",null,null,null,null,null,null,6903245,2345,1,33000,"IN_AIR_MEAS_SURF_PUMP_DURATION"]
[10,"MISSION TECHNICAL PARAMETERS",1,"TC23","1.238",0.125,null,"Coefficient de calibrage pression Coeff A (coefficient de calibration utilisé pour convertir la pression interne).",null,null,null,null,null,null,6903245,948,1,"1.238","PRCFG_Pressure_coefficient_A"]
[10,"MISSION TECHNICAL PARAMETERS",1,"TC24",-63.73,0,null,"Coefficient de calibrage pression Coeff B (coefficient de calibration utilisé pour convertir la pression interne).",null,null,null,null,null,null,6903245,949,1,-63.73,"PRCFG_Pressure_coefficient_B"]
[10,null,null,null,null,null,null,null,null,null,null,null,null,null,6903245,null,null,""]
[10,"ACCEPTANCE REMARKS",1,"ACCEPT_VISUAL_CHECK",null,null,null,"Comment after visual inspection of the float",null,null,null,null,null,null,{"$f":"$E$20","v":6903245},2103,{"$f":"C147","v":1},"","ACPT_FLOAT_VISUAL_CHECK_CMT"]
[10,"ACCEPTANCE REMARKS",1,"ACCEPT_BALLAST_CHECK"," ",null,null,"Comment after visual inspection of the ballast",null,null,null,null,null,null,6903245,2104,1," ","ACPT_BALLAST_VISUAL_CHECK_CMT"]
[10,"ACCEPTANCE REMARKS",1,"ACCEPT_FIRMWARE_VERSION",null,null,null,"Float firmware version",null,null,null,null,null,null,6903245,2105,1,"","ACPT_FIRMWARE_VERSION"]
[10,"ACCEPTANCE REMARKS",1,"ACCEPT_CLOCK_SET_BEFORE","no",null,null,"Float clock set (yes/no)",null,null,null,null,null,null,6903245,2107,{"$f":"C150","v":1},"no","ACPT_START_CLOCK_SET"]
[10,"ACCEPTANCE REMARKS",1,"ACCEPT_CLOCK_SET_DATE_BEFORE",null,null,null,"Float clock set date (dd/mm/yyyy hh:mm) ('!TI')",null,null,null,null,null,null,6903245,2280,1,"","ACPT_START_CLOCK_SET_VALUE"]
[10,"ACCEPTANCE REMARKS",1,"ACCEPT_BATTERY_VOLTAGE_BEFORE",10.8,null,null,"Battery voltage (V)",null,null,null,null,null,null,6903245,2108,1,10.8,"ACPT_START_BATTERY_VOLTAGE"]
[10,"ACCEPTANCE REMARKS",1,"ACCEPT_INTERNAL_VACUUM_FULL_BEFORE",null,null,null,"Internal vacuum with full bladder (mbar)",null,null,null,null,null,null,6903245,2109,1,"","ACPT_START_INT_VAC_FULL_BLADDER"]
[10,"ACCEPTANCE REMARKS",1,"ACCEPT_PRESSURE_BEFORE",null,null,null,"Pressure (cbar)  ('?S')",null,null,null,null,null,null,6903245,2281,1,"","ACPT_PRES_VAL_BEFORE"]
[10,"ACCEPTANCE REMARKS",1,"ACCEPT_TEMPERATURE_BEFORE",null,null,null,"Temperature (°C)  ('?S')",null,null,null,null,null,null,6903245,2282,1,"","ACPT_TEMP_VAL_BEFORE"]
[10,"ACCEPTANCE REMARKS",1,"ACCEPT_SALINITY_BEFORE",null,null,null,"Salinity (mPSU)  ('?S')",null,null,null,null,null,null,6903245,2283,1,"","ACPT_PSAL_VAL_BEFORE"]
[10,"ACCEPTANCE REMARKS",1,"ACCEPT_FIRMWARE_CHECKSUM",null,null,null,"Firmware checksum ('!C')",null,null,null,null,null,null,6903245,2106,{"$f":"C157","v":1},"","ACPT_FIRMWARE_CHECKSUM"]
[10,"ACCEPTANCE REMARKS",1,"ACCEPT_SPY_MODE_ON","OK",null,null,"Spy mode activated ('!SP ON')",null,null,null,null,null,null,6903245,2113,1,"OK","ACPT_SPY_MODE_ON"]
[10,"ACCEPTANCE REMARKS",1,"ACCEPT_SHOW_MODE_OFF","OK",null,null,"Show mode disabled ('!SH OFF')",null,null,null,null,null,null,6903245,2114,1,"OK","ACPT_SHOW_MODE_OFF"]
[10,"ACCEPTANCE REMARKS",1,"ACCEPT_ARM_ON","OK",null,null,"Mission armed ('!AR ON')",null,null,null,null,null,null,6903245,2115,1,"OK","ACPT_MISSION_ARMED"]
[10,"ACCEPTANCE DEPLOYMENT",1,"ACCEPT_MAGNET_REMOVAL_TIME",null,null,null,"Magnet removal  time (dd/mm/yyyy hh:mm)",null,null,null,null,null,null,6903245,2116,1,null,"ACPT_STARTUP_DATE"]
[10,"ACCEPTANCE DEPLOYMENT",1,"ACCEPT_FLOAT_INTERNAL_CHECK",null,null,null,"Comment on float internal checks (valve and pump actions, argos transmission check) ",null,null,null,null,null,null,6903245,2284,{"$f":"C162","v":1},"","ACPT_FLOAT_INTERNAL_CHECK_CMT"]
[10,"ACCEPTANCE DEPLOYMENT",1,"ACCEPT_BUOYANCY_BEFORE",null,null,null,"Buoyancy description at deployment",null,null,null,null,null,null,6903245,2285,1,"","ACPT_BUOYANCY_DESCRIPTION_BEFORE"]
[10,"ACCEPTANCE RECOVERY",1,"ACCEPT_BUOYANCY_AFTER",null,null,null,"Buoyancy description at recovery",null,null,null,null,null,null,6903245,2286,1,"","ACPT_BUOYANCY_DESCRIPTION_AFTER"]
[10,"ACCEPTANCE RECOVERY",1,"ACCEPT_CLOCK_DRIFT",null,null,null,"Clock drift",null,null,null,null,null,null,6903245,2124,1,"","ACPT_CLOCK_DRIFT"]
[10,"ACCEPTANCE RECOVERY",1,"ACCEPT_BATTERY_VOLTAGE_AFTER",null,null,null,"Battery voltage (V)",null,null,null,null,null,null,6903245,2127,1,"","ACPT_END_BATTERY_VOLTAGE"]
[10,"ACCEPTANCE RECOVERY",1,"ACCEPT_INTERNAL_VACUUM_AFTER",null,null,null,"Internal vacuum at recovery (mbar)",null,null,null,null,null,null,6903245,2128,1,"","ACPT_END_INT_VAC"]
[10,"ACCEPTANCE RECOVERY",1,"ACCEPT_INTERNAL_VACUUM_COMMENT",null,null,null,"Comment on vacuum measurement after recovery",null,null,null,null,null,null,6903245,2130,{"$f":"C168","v":1},"","ACPT_END_INT_VAC_CMT"]
[10,"ACCEPTANCE RECOVERY",1,"ACCEPT_PRESSURE_AFTER",null,null,null,"Pressure (cbar)  ('?S')",null,null,null,null,null,null,6903245,2287,1,"","ACPT_PRES_VAL_AFTER"]
[10,"ACCEPTANCE RECOVERY",1,"ACCEPT_TEMPERATURE_AFTER",null,null,null,"Temperature (°C)  ('?S')",null,null,null,null,null,null,6903245,2288,1,"","ACPT_TEMP_VAL_AFTER"]
[10,"ACCEPTANCE RECOVERY",1,"ACCEPT_SALINITY_AFTER",null,null,null,"Salinity (mPSU)  ('?S')",null,null,null,null,null,null,6903245,2289,1,"","ACPT_PSAL_VAL_AFTER"]
[10,"ACCEPTANCE RECOVERY",1,"ACCEPT_COMMENT",null,null,null,"General comment on acceptance checks",null,null,null,null,null,null,6903245,2131,{"$f":"C172","v":1},"","ACPT_CMT"]
[10,null,null,null,null,null,null,null,null,null,null,null,null,null,6903245,null,null,""]
[10,"MISSION PROGRAMMING REMARKS",1,"PRE_DEPLOY_VISUAL_CHECK",null,null,null,"Comment after visual inspection of the float",null,null,null,null,null,null,6903245,2132,1,"","P_DPLY_FLOAT_VISUAL_CHECK_CMT"]
[10,"MISSION PROGRAMMING REMARKS",1,"PRE_DEPLOY_BALLAST_CHECK",null,null,null,"Comment after visual inspection of the ballast",null,null,null,null,null,null,6903245,2133,{"$f":"C175","v":1},"","P_DPLY_BALLAST_VISUAL_CHECK_CMT"]
[10,"MISSION PROGRAMMING REMARKS",1,"PRE_DEPLOY_FIRMWARE_VERSION",null,null,null,"Float firmware version ('?VL')",null,null,null,null,null,null,6903245,2290,{"$f":"C176","v":1},"","P_DPLY_FIRMWARE_VERSION"]
[10,"MISSION PROGRAMMING REMARKS",1,"PRE_DEPLOY_CLOCK_SET",null,null,null,"Float clock set",null,null,null,null,null,null,6903245,2134,{"$f":"C177","v":1},"","P_DPLY_CLOCK_SET"]
[10,"MISSION PROGRAMMING REMARKS",1,"PRE_DEPLOY_CLOCK_SET_DATE",null,null,null,"Float clock set date (dd/mm/yyyy hh:mm) ('!TI')",null,null,null,null,null,null,6903245,2291,1,"","P_DPLY_CLOCK_SET_VALUE"]
[10,"MISSION PROGRAMMING REMARKS",1,"PRE_DEPLOY_BATTERY_VOLTAGE",null,null,null,"Battery voltage (V)",null,null,null,null,null,null,6903245,2135,1,"","P_DPLY_BATTERY_VOLTAGE"]
[10,"MISSION PROGRAMMING REMARKS",1,"PRE_DEPLOY_INTERNAL_VACUUM_FULL",null,null,null,"Internal vacuum with full bladder (mbar)",null,null,null,null,null,null,6903245,2136,1,"","P_DPLY_INT_VAC_FULL_BLADDER"]
[10,"MISSION PROGRAMMING REMARKS",1,"PRE_DEPLOY_INTERNAL_VACUUM_COMMENT",null,null,null,"Comment on vacuum measurements",null,null,null,null,null,null,6903245,2137,{"$f":"C181","v":1},"","P_DPLY_INT_VAC_CMT"]
[10,"MISSION PROGRAMMING REMARKS",1,"PRE_DEPLOY_PRESSURE",null,null,null,"Pressure (cbar)  ('?S')",null,null,null,null,null,null,6903245,2292,1,"","P_DPLY_PRES_VAL"]
[10,"MISSION PROGRAMMING REMARKS",1,"PRE_DEPLOY_TEMPERATURE",null,null,null,"Temperature (°C)  ('?S')",null,null,null,null,null,null,6903245,2293,1,"","P_DPLY_TEMP_VAL"]
[10,"MISSION PROGRAMMING REMARKS",1,"PRE_DEPLOY_SALINITY",null,null,null,"Salinity (mPSU)  ('?S')",null,null,null,null,null,null,6903245,2294,1,"","P_DPLY_PSAL_VAL"]
[10,"MISSION PROGRAMMING REMARKS",1,"PRE_DEPLOY_FIRMWARE_CHECKSUM",null,null,null,"Firmware checksum",null,null,null,null,null,null,6903245,null,{"$f":"C185","v":1},""]
[10,"MISSION PROGRAMMING REMARKS",1,"PRE_DEPLOY_SPY_MODE_ON","OK",null,null,"Spy mode activated ('!SP ON')",null,null,null,null,null,null,6903245,2141,1,"OK","P_DPLY_SPY_MODE_ON"]
[10,"MISSION PROGRAMMING REMARKS",1,"PRE_DEPLOY_SHOW_MODE_OFF","OK",null,null,"Show mode disabled ('!SH OFF')",null,null,null,null,null,null,6903245,2142,1,"OK","P_DPLY_SHOW_MODE_OFF"]
[10,"MISSION PROGRAMMING REMARKS",1,"PRE_DEPLOY_ARM_ON","OK",null,null,"Mission armed ('!AR ON')",null,null,null,null,null,null,6903245,2143,1,"OK","P_DPLY_MISSION_ARMED"]
[10,"MISSION PROGRAMMING REMARKS",1,"PRE_DEPLOY_COMMENT","OK",null,null,"General comment on mission programming",null,null,null,null,null,null,6903245,2144,1,"OK","P_DPLY_CMT"]
[10,null,null,null,null,null,null,null,null,null,null,null,null,null,6903245,1243,1,{"$f":"MID(R21,9,6)","v":"596658"},"IMEI"]
[10,null,null,null,null,null,null,null,null,null,null,null,null,null,6903245,14,1,64,"PR_RECORDER_CODE"]
[10,null,null,null,null,null,null,null,null,null,null,null,null,null,6903245,376,1,"IF","DATA_CENTRE"]
[10,null,null,null,null,null,null,null,null,null,null,null,null,null,6903245,377,1,"GPS","POSITIONING_SYSTEM"]
[10,null,null,null,null,null,null,null,null,null,null,null,null,null,6903245,377,2,"IRIDIUM","POSITIONING_SYSTEM"]
[10,null,null,null,null,null,null,null,null,null,null,null,null,null,6903245,385,1,"IRIDIUM","TRANS_SYSTEM"]
[10,null,null,null,null,null,null,null,null,null,null,null,null,null,6903245,393,1,"B","DIRECTION"]
[10,null,null,null,null,null,null,null,null,null,null,null,null,null,6903245,396,1,1,"LAUNCH_QC"]
[10,null,null,null,null,null,null,null,null,null,null,null,null,null,6903245,398,1,1,"START_DATE_QC"]
[10,null,null,null,null,null,null,null,null,null,null,null,null,null,6903245,419,1,1,"REPETITION_RATE"]
[10,null,null,null,null,null,null,null,null,null,null,null,null,null,6903245,4,1,{"$f":"IF(ISBLANK(R90),\"\",R90/24)","v":5},"PR_CYCLE_PERIOD",null,null,"CYCLE_TIME en jours"]
[10,null,null,null,null,null,null,null,null,null,null,null,null,null,6903245,4,2,{"$f":"IF(ISBLANK(R91),\"\",R91/24)","v":5},"PR_CYCLE_PERIOD",null,null,"CYCLE_TIME en jours"]
[10,null,null,null,null,null,null,null,null,null,null,null,null,null,6903245,17,1,{"$f":"IF(ISBLANK(R99),\"\",R99)","v":350},"PR_PARKING_DEPTH",null,null,"idem PARKING_PRESSURE"]
[10,null,null,null,null,null,null,null,null,null,null,null,null,null,6903245,17,2,{"$f":"IF(ISBLANK(R101),\"\",R101)","v":350},"PR_PARKING_DEPTH",null,null,"idem PARKING_PRESSURE"]
[10,null,null,null,null,null,null,null,null,null,null,null,null,null,6903245,18,1,{"$f":"IF(ISBLANK(R100),\"\",R100)","v":2000},"PR_PROFILE_DEPTH",null,null,"idem DEEPEST_PRESSURE"]
[10,null,null,null,null,null,null,null,null,null,null,null,null,null,6903245,18,2,{"$f":"IF(ISBLANK(R102),\"\",R102)","v":2000},"PR_PROFILE_DEPTH",null,null,"idem DEEPEST_PRESSURE"]
[10,null,null,null,null,null,null,null,null,null,null,null,null,null,6903245,482,1,"2018-10-30T16:00:00","METADATA_DATE_UPDATE",null,null,"date courante sans les MM:SS + 5 heures (mis à jour lors de la validation ou sauvegarde)"]
[10,null,null,null,null,null,null,null,null,null,null,null,null,null,6903245,573,1,1.2,"HANDBOOK_VERSION"]
[10,null,null,null,null,null,null,null,null,null,null,null,null,null,6903245,397,1,{"$f":"IF(ISBLANK(R35),\"\",IF(R94=\"\",\"\",(R35+(R94/1440))))","v":"2018-10-18T05:01:00"},"START_DATE",null,null," = startup_date + DELAY_BEFORE_MISSION/1440"]
[10,null,null,null,null,null,null,null,null,null,null,null,null,null,6903245,1,1,"PROVOR","PR_TYPE"]

{"sheet":"Predefined lists","index":1,"n_rows":72,"n_cols":47,"rows_kept":72,"cut":false,"hidden":false,"merged":[]}
["PLATFORM_FAMILY","DEFINITION",null,"PLATFORM_TYPE","DEFINITION",null,"PLATFORM_MAKER","DEFINITION",null,"SENSOR","DEFINITION (AUM 3.1 du 11 juillet 2014)",null,"SENSOR_MAKER","DEFINITION",null,"SENSOR_MODEL","DEFINITION",null,"CO_VERSION","DEFINITION",null,"SEL_Y_N","DEFINITION",null,"SEL_OK","DEFINITION",null,"BATTERY_TYPE","DEFINITION",null,"INST_TYPE","DEFINITION",null,"RECORDER_CODE","DEFINITION",null,"PARAMETER","long_name","cf standard_name","unit","type",null,"SEA_STATE","DEFINITION",null,"BUOY_DESCRIPTION","DEFINITION"]
["FLOAT","Profiling float",null,"PALACE","Webb Research Corporation – first Argo float model from them",null,"MARTEC","Martec",null,"ACOUSTIC_GEOLOCATION",null,null,"AANDERAA",null,null,"FSI   ","      ",null,null,null,null,null,null,null,null,null,null,"Alkaline",null,null,null,null,null,1,"Sippican strip chart recorder",null,"CNDC","Electrical conductivity","sea_water_electrical_conductivity","mhos/m","c"]
["FLOAT_COASTAL","Coastal float, i.e. ARVOR-C ",null,"APEX","Webb Research Corporation/Teledyne Webb  APEX float",null,"METOCEAN","MetOcean",null,"ACOUSTIC_PRECIPITATION",null,null,"AMETEK",null,null,"SBE   ","      ",null,5.43,null,null,"yes",null,null,"OK",null,null,"Lithium",null,null,831,"P-Alace float",null,2,"Sippican MK2A/SSQ-61",null,"PRES","Sea water pressure, equals 0 at sea-level ","sea_water_pressure","decibar","c",null,"Calm (0 to 0.1 m)",null,null,"Water @ 0.5 cm above top of P sensor"]
["FLOAT_DEEP","Profiling Float that is capable of profiling deeper than 2000 dbar",null,"APEX_EM","Webb Research Corporation/Teledyne Webb  APEX ElectroMagnetic float (measures velocity and mixing)",null,"MRV","MRV Systems",null,"CTD_PRES",null,null,"DRUCK",null,null,"SBE37   ","      ",null,5.44,null,null,"no",null,null,null,null,null,"Alkaline and Lithium",null,null,837,"Arvor-C float",null,3,"Sippican MK-9",null,"PSAL","Practical salinity","sea_water_salinity","psu","c",null,"Smooth (0.1 to 0.5 m)",null,null,"Water @ top of P sensor"]
["POLAR_OCEAN_PROFILING_SYSTEM","Ice platform that provides meteorological data is paired with a subsurface platform, either a PROVOR CTS-3 or NEMO float tethered along a cable that uses buoyancy to go up and down.",null,"APEX_D","Teledyne Webb  deep profiling APEX float",null,"NKE","NKE Instrumentation",null,"CTD_TEMP",null,null,"FSI",null,null,"SBE41   ","      ",null,null,null,null,null,null,null,null,null,null,null,null,null,838,"Arvor-D float",null,4,"Sippican AN/BHQ-7/MK8",null,"TEMP","Sea temperature in-situ ITS-90 scale","sea_water_temperature","degree_Celsius","c",null,"Slight (0.5 to 1.25 m)",null,null,"Water @ top of buoyancy foam"]
["ICE_TETHERED_PROFILER","Surface ice mounted platform that provides meteorological data and subsurface profiler tethered to a cable that uses a motor to go up and down.",null,"APEX_C","Not yet manufactured",null,"OPTIMARE","Optimare",null,"CTD_CNDC",null,null,"KISTLER",null,null,"SBE41_V2.5   ","      ",null,null,null,null,null,null,null,null,null,null,null,null,null,839,"Provor-II float",null,5,"Sippican MK-12",null,"DOXY","Dissolved oxygen","moles_of_oxygen_per_unit_mass_in_sea_water","micromole/kg","b",null,"Moderate (1.25 to 2.5 m)"]
[null,null,null,"PROVOR_MT","Metocean PROVOR float",null,"SBE","Seabird",null,"EM",null,null,"PAINE",null,null,"SBE41_V2.6   ","      ",null,null,null,null,null,null,null,null,null,null,null,null,null,840,"Provor, no conductivity",null,6,"Sippican MK-21",null,"TURBIDITY","Sea water turbidity","sea_water_turbidity","ntu","b",null,"Rough (2.5 to 4 m)"]
[null,null,null,"PROVOR","PROVOR float sold by MARTEC or NKE",null,"SIO_IDG","Scripps Institution of Oceanography – Instrument Development Group",null,"FLUOROMETER_CDOM",null,null,"SBE",null,null,"SBE41_V3   ","      ",null,null,null,null,null,null,null,null,null,null,null,null,null,841,"Provor, Seabird conductivity sensor",null,7,"Sippican MK-8 Linear Recorder",null,"CHLA","Chlorophyll-A","mass_concentration_of_chlorophyll_a_in_sea_water","mg/m3","b",null,"Very rough (4 to 6 m)"]
[null,null,null,"ARVOR","NKE ARVOR float",null,"TSK","Tsurumi-Seiki Co., Ltd.",null,"FLUOROMETER_CHLA",null,null,"SEASCAN",null,null,"SBE41CP   ","      ",null,null,null,null,null,null,null,null,null,null,null,null,null,842,"Provor, FSI conductivity sensor",null,8,"Sippican MK-10",null,"CDOM","Concentration of coloured dissolved organic matter in sea water","-","ppb","b",null,"High (6 to 9 m)"]
[null,null,null,"PROVOR_II","NKE dual board PROVOR float",null,"TWR","Teledyne Webb Research (formerly Webb Research Corporation)",null,"IDO_DOXY",null,null,"WETLABS","Wetlabs Inc.",null,"SBE41CP_IDO_V2.0b   ","   Seabird CTD module with IDO oxygen sensor   ",null,null,null,null,null,null,null,null,null,null,null,null,null,843,"POPS ice Buoy/Float",null,10,"Sparton SOC BT/SV Processor Model 100",null,"NITRATE","Nitrate","moles_of_nitrate_per_unit_mass_in_sea_water","micromoles/kg ","b",null,"Very high (9 to 14 m)"]
[null,null,null,"PROVOR_III","NKE dual board PROVOR float new generation",null,"WHOI","Woods Hole Oceanographic Institution",null,"OPTODE_DOXY",null,null,"MBARI","Monterey Bay Aquarium Research Institute",null,"SBE41CP_V1   ","      ",null,null,null,null,null,null,null,null,null,null,null,null,null,844,"Arvor, Seabird conductivity sensor",null,11,"Lockheed-Sanders Model OL5005",null,"BISULFIDE","Bisulfide","-","micromoles/kg ","b",null,"Phenomenal (over 14 m)"]
[null,null,null,"ARVOR_C","Coastal ARVOR float",null,"WRC","Webb Research Corporation",null,"RADIOMETER_DOWN_IRR",null,null,"SATLANTIC",null,null,"SBE41CP_V1.1   ","      ",null,null,null,null,null,null,null,null,null,null,null,null,null,845,"Webb Research, no conductivity",null,20,"Argos XBT-ST",null,"PH_IN_SITU_TOTAL","pH","sea_water_ph_reported_on_total_scale","dimensionless","b"]
[null,null,null,"ARVOR_D","Deep profiling NKE ARVOR float",null,null,null,null,"RADIOMETER_PAR",null,null,"JAC","JFE Advantech Co., Ltd.",null,"SBE41CP_V1.2   ","      ",null,null,null,null,null,null,null,null,null,null,null,null,null,846,"Webb Research, Seabird sensor",null,21,"CLS-ARGOS / Protecno XBT-ST Model-1",null,"TEMP_DOXY","Sea temperature from oxygene sensor ITS-90 scale","temperature_of_sensor_for_oxygen_in_sea_water","degree_Celsius","i"]
[null,null,null,"SOLO","Scripps Institution of Oceanography – Instrument Development Group SOLO float",null,null,null,null,"SCATTEROMETER_BBP",null,null,"APL_UW","University of Washington, Applied Physics Laboratory",null,"SBE41CP_V1.2a   ","      ",null,null,null,null,null,null,null,null,null,null,null,null,null,847,"Webb Research, FSI sensor",null,22,"CLS-ARGOS / Protecno XBT-ST Model-2",null,"VOLTAGE_DOXY","Voltage reported by oxygen sensor","-","volt","i"]
[null,null,null,"SOLO_W","Woods Hole Oceanographic Institute SOLO float",null,null,null,null,"SCATTEROMETER_TURBIDITY",null,null,"TSK","Tsurumi-Seiki Co., Ltd.",null,"SBE41CP_V1.3   ","      ",null,null,null,null,null,null,null,null,null,null,null,null,null,848,"Apex-EM float",null,30,"BATHY Systems SA-810",null,"FREQUENCY_DOXY","Frequency reported by oxygen sensor","-","hertz","i"]
[null,null,null,"SOLO_II","Scripps Institution of Oceanography – Instrument Development Group SOLO-II float",null,null,null,null,"SPECTROPHOTOMETER_BISULFIDE",null,null,"RBR",null,null,"SBE41CP_V1.3b   ","      ",null,null,null,null,null,null,null,null,null,null,null,null,null,849,"Apex-D deep float",null,31,"Scripps Metrobyte controller",null,"COUNT_DOXY","Count reported by oxygen sensor","-","dimensionless","i"]
[null,null,null,"S2A","MRV SOLOII  float",null,null,null,null,"SPECTROPHOTOMETER_NITRATE",null,null,null,null,null,"SBE41CP_V1.4   ","      ",null,null,null,null,null,null,null,null,null,null,null,null,null,850,"Solo, no conductivity",null,32,"Murayama Denki Z-60-16 III",null,"BPHASE_DOXY","Uncalibrated phase shift reported by oxygen sensor","-","degree","i"]
[null,null,null,"SOLO_D","Scripps Institution of Oceanography – Instrument Development Group deep SOLO float",null,null,null,null,"STS_CNDC",null,null,null,null,null,"SBE41CP_V1.5   ","      ",null,null,null,null,null,null,null,null,null,null,null,null,null,851,"Solo,  Seabird conductivity sensor",null,33,"Murayama Denki Z-60-16 II",null,"DPHASE_DOXY","Calibrated phase shift reported by oxygen sensor","-","degree","i"]
[null,null,null,"NINJA","TSK NINJA float",null,null,null,null,"STS_TEMP",null,null,null,null,null,"SBE41CP_V1.7   ","      ",null,null,null,null,null,null,null,null,null,null,null,null,null,852,"Solo, FSI conductivity sensor",null,34,"Protecno ETSM2",null,"TPHASE_DOXY","Uncalibrated phase shift reported by oxygen sensor","-","degree","i"]
[null,null,null,"NINJA_D","TSK NINJA deep float",null,null,null,null,"TRANSISTOR_PH",null,null,null,null,null,"SBE41CP_V1.8   ","      ",null,null,null,null,null,null,null,null,null,null,null,null,null,853,"Solo2, Seabird conductivity sensor",null,35,"Nautilus Marine Service NMS-XBT",null,"C1PHASE_DOXY","Uncalibrated phase shift reported by oxygen sensor","-","degree","i"]
[null,null,null,"NEMO","OPTIMARE NEMO float",null,null,null,null,"TRANSMISSOMETER_CP",null,null,null,null,null,"SBE41CP_V1.9   ","      ",null,null,null,null,null,null,null,null,null,null,null,null,null,854,"S2A float",null,40,"TSK MK-2A",null,"C2PHASE_DOXY","Uncalibrated phase shift reported by oxygen sensor","-","degree","i"]
[null,null,null,"NAVIS_A","Seabird NAVIS float",null,null,null,null,null,null,null,null,null,null,"SBE41CP_V2   ","      ",null,null,null,null,null,null,null,null,null,null,null,null,null,855,"Ninja, no conductivity sensor",null,41,"TSK MK-2S",null,"MOLAR_DOXY","Uncompensated (pressure and salinity) oxygen concentration reported by the oxygen sensor","mole_concentration_of_dissolved_molecular_oxygen_in_sea_water","micromole/l","i"]
[null,null,null,"NOVA","METOCEAN NOVA float",null,null,null,null,null,null,null,null,null,null,"SBE41CP_V3   ","      ",null,null,null,null,null,null,null,null,null,null,null,null,null,856,"Ninja, SBE conductivity sensor",null,42,"TSK MK-30",null,"PHASE_DELAY_DOXY","Phase delay reported by oxygen sensor","-","microsecond","i"]
[null,null,null,"ALAMO","MRV/WHOI new float",null,null,null,null,null,null,null,null,null,null,"SBE41CP_V3.0a   ","      ",null,null,null,null,null,null,null,null,null,null,null,null,null,857,"Ninja, FSI conductivity sensor",null,43,"TSK MK-30N",null,"MLPL_DOXY","Oxygen concentration reported by the oxygen sensor","-","ml/l","i"]
[null,null,null,"ITP","Ice Tethered Profiler (with modified WHOI moored profiler driven by a traction drive unit)",null,null,null,null,null,null,null,null,null,null,"SBE41CP_V3.0c   ","      ",null,null,null,null,null,null,null,null,null,null,null,null,null,858,"Ninja, TSK conductivity sensor",null,45,"TSK MK-100",null,"NB_SAMPLE","Number of samples in bin","-","dimensionless","i"]
[null,null,null,"POPS_PROVOR","Polar Ocean Profiling System (with PROVOR CTS-3 float)",null,null,null,null,null,null,null,null,null,null,"SBE61CP   ","   new deep Argo \"WOCE for life\" CTD   ",null,null,null,null,null,null,null,null,null,null,null,null,null,859,"Profiling Float, NEMO, no conductivity",null,46,"TSK MK-100 compatible recorder for both XBT and XCTD",null,"RPHASE_DOXY","Uncalibrated red phase shift reported by oxygen sensor","-","degree","i"]
[null,null,null,"POPS_NEMO","Polar Ocean Profiling System (with NEMO float)",null,null,null,null,null,null,null,null,null,null,"SBE61_V4.5.2   ","      ",null,null,null,null,null,null,null,null,null,null,null,null,null,860,"Profiling Float, NEMO, SBE conductivity sensor",null,47,"TSK MK-1130A XCTD recorder",null,"BETA_BACKSCATTERING","Total angle specific volume from backscattering sensor  at x nanometers","-","count","i"]
[null,null,null,"FLOAT","Generic value when unknown",null,null,null,null,null,null,null,null,null,null,"SBE61_V4.5.3   ","      ",null,null,null,null,null,null,null,null,null,null,null,null,null,861,"Profiling Float, NEMO, FSI conductivity sensor",null,48,"TSK AXBT receiver MK-300",null,"FLUORESCENCE_CHLA","Chlorophyll-A signal from fluorescence sensor","-","count","i"]
[null,null,null,null,null,null,null,null,null,null,null,null,null,null,null,"CTD_F01   ","   TSK model   ",null,null,null,null,null,null,null,null,null,null,null,null,null,862,"Solo-D deep float",null,49,"TSK MK-150 Compatible recorder for both XBT and XCTD",null,"TEMP_CPU_CHLA","Thermistor signal from backscattering sensor","-","count","i"]
[null,null,null,null,null,null,null,null,null,null,null,null,null,null,null,"RBR   ","   RBR model   ",null,null,null,null,null,null,null,null,null,null,null,null,null,863,"Navis-A Float",null,50,"JMA ASTOS",null,"FLUORESCENCE_CDOM","Raw fluorescence from colored dissolved organic mater sensor","-","count","i"]
[null,null,null,null,null,null,null,null,null,null,null,null,null,null,null,"SBE43_IDO   ","   Seabird Electrochemical Dissolved Oxygen IDO sensor (volt output)   ",null,null,null,null,null,null,null,null,null,null,null,null,null,864,"Ninja-D deep float",null,60,"ARGOS communications, sampling on up transit.",null,"SIDE_SCATTERING_TURBIDITY","Turbidity signal from side scattering sensor","-","count","i"]
[null,null,null,null,null,null,null,null,null,null,null,null,null,null,null,"SBE43I   ","   configuration option   ",null,null,null,null,null,null,null,null,null,null,null,null,null,865,"Nova float",null,61,"ARGOS communications, sampling on down transit.",null,"TRANSMITTANCE_PARTICLE_BEAM_ATTENUATION","Beam attenuation from transmissiometer sensor at x nanometers","-","count","i"]
[null,null,null,null,null,null,null,null,null,null,null,null,null,null,null,"SBE43F_IDO   ","   Seabird Electrochemical Dissolved Oxygen IDO sensor (frequency output)   ",null,null,null,null,null,null,null,null,null,null,null,null,null,null,null,null,62,"Orbcomm communications, sampling on up transit.",null,"UV_INTENSITY_NITRATE","Intensity of ultra violet flux from nitrate sensor","-","count","i"]
[null,null,null,null,null,null,null,null,null,null,null,null,null,null,null,"SBE63_OPTODE   ","   Seabird Optical Dissolved Oxygen Sensor   ",null,null,null,null,null,null,null,null,null,null,null,null,null,null,null,null,63,"Orbcomm communications, sampling on down transit.",null,"UV_INTENSITY_DARK_NITRATE","Intensity of ultra violet flux dark measurement from nitrate sensor","-","count","i"]
[null,null,null,null,null,null,null,null,null,null,null,null,null,null,null,"AANDERAA_OPTODE   ","      ",null,null,null,null,null,null,null,null,null,null,null,null,null,null,null,null,64,"Iridium, communications sampling on up transit",null,"UV_INTENSITY_DARK_SEAWATER_NITRATE","Intensity of ultra-violet flux dark sea water from nitrate sensor","-","count","i"]
[null,null,null,null,null,null,null,null,null,null,null,null,null,null,null,"AANDERAA_OPTODE_3830   ","      ",null,null,null,null,null,null,null,null,null,null,null,null,null,null,null,null,65,"Iridium communications, sampling on down transit",null,"E_NITRATE","E nitrate???","-","liter/micromol cm","i"]
[null,null,null,null,null,null,null,null,null,null,null,null,null,null,null,"AANDERAA_OPTODE_3835   ","      ",null,null,null,null,null,null,null,null,null,null,null,null,null,null,null,null,70,"CSIRO Devil-1 XBT acquisition system",null,"UV_INTENSITY_REF_NITRATE","Ultra-violet intensity reference from nitrate sensor","-","count","i"]
[null,null,null,null,null,null,null,null,null,null,null,null,null,null,null,"AANDERAA_OPTODE_3930   ","      ",null,null,null,null,null,null,null,null,null,null,null,null,null,null,null,null,71,"CSIRO Devil-2 XBT acquisition system",null,"E_SWA_NITRATE","???","-","dimensionless","i"]
[null,null,null,null,null,null,null,null,null,null,null,null,null,null,null,"AANDERAA_OPTODE_4330   ","      ",null,null,null,null,null,null,null,null,null,null,null,null,null,null,null,null,80,"Applied Microsystems Ltd., MICRO-SVT&P",null,"TEMP_CAL_NITRATE","Temperature calibration from nitrate sensor","-","degree_Celsius","i"]
[null,null,null,null,null,null,null,null,null,null,null,null,null,null,null,"AANDERAA_OPTODE_4330F   ","      ",null,null,null,null,null,null,null,null,null,null,null,null,null,null,null,null,81,"Sea Mammal Research Unit, Univ. St. Andrews, UK, uncorrected salinity from a sea mammal mounted instrument",null,"ABSORBANCE _COR_NITRATE","Absorbance cor??? from nitrate sensor","-","dimensionless","i"]
[null,null,null,null,null,null,null,null,null,null,null,null,null,null,null,"ARO_FT   ","   JAC RINKO   ",null,null,null,null,null,null,null,null,null,null,null,null,null,null,null,null,82,"Sea Mammal Research Unit, Univ. St. Andrews, UK, salinity from a sea mammal mounted instrument",null,"MOLAR_NITRATE","Nitrate","-","micromole/l","i"]
[null,null,null,null,null,null,null,null,null,null,null,null,null,null,null,"DRUCK   ","      ",null,null,null,null,null,null,null,null,null,null,null,null,null,null,null,null,99,"Unknown",null,"FIT_ERROR_NITRATE","Nitrate fit error","-","dimensionless","i"]
[null,null,null,null,null,null,null,null,null,null,null,null,null,null,null,"DRUCK_2900PSIA   ","      ",null,null,null,null,null,null,null,null,null,null,null,null,null,null,null,null,127,"Missing value",null,"VRS_PH","Voltage difference between reference and source from pH sensor","-","volt","i"]
[null,null,null,null,null,null,null,null,null,null,null,null,null,null,null,"PAINE   ","      ",null,null,null,null,null,null,null,null,null,null,null,null,null,null,null,null,null,null,null,"PH_IN_SITU_FREE","pH","-","dimensionless","i"]
[null,null,null,null,null,null,null,null,null,null,null,null,null,null,null,"PAINE_1500PSIA   ","      ",null,null,null,null,null,null,null,null,null,null,null,null,null,null,null,null,null,null,null,"PH_IN_SITU_SEAWATER","pH","-","dimensionless","i"]
[null,null,null,null,null,null,null,null,null,null,null,null,null,null,null,"PAINE_1600PSIA   ","      ",null,null,null,null,null,null,null,null,null,null,null,null,null,null,null,null,null,null,null,"RAW_DOWNWELLING_IRRADIANCE","Raw downwelling irradiance at x nanometers","-","count","i"]
[null,null,null,null,null,null,null,null,null,null,null,null,null,null,null,"PAINE_2000PSIA   ","      ",null,null,null,null,null,null,null,null,null,null,null,null,null,null,null,null,null,null,null,"RAW_UPWELLING_RADIANCE","Raw upwelling radiance at x nanometers","-","count","i"]
[null,null,null,null,null,null,null,null,null,null,null,null,null,null,null,"PAINE_2900PSIA   ","      ",null,null,null,null,null,null,null,null,null,null,null,null,null,null,null,null,null,null,null,"RAW_DOWNWELLING_PAR","Raw downwelling photosynthetic available radiation","-","count","i"]
[null,null,null,null,null,null,null,null,null,null,null,null,null,null,null,"PAINE_3000PSIA   ","      "]
[null,null,null,null,null,null,null,null,null,null,null,null,null,null,null,"AMETEK   ","      "]
[null,null,null,null,null,null,null,null,null,null,null,null,null,null,null,"KISTLER   ","      "]
[null,null,null,null,null,null,null,null,null,null,null,null,null,null,null,"KISTLER_2900PSIA   ","      "]
[null,null,null,null,null,null,null,null,null,null,null,null,null,null,null,"KISTLER_10153PSIA   ","      "]
[null,null,null,null,null,null,null,null,null,null,null,null,null,null,null,"SBE_STS   ","   SBE Near Surface Conductivity and Temperature Module   "]
[null,null,null,null,null,null,null,null,null,null,null,null,null,null,null,"SUNA   ","   UV absorption to derive nitrate and bisulfide (MBARI)   "]
[null,null,null,null,null,null,null,null,null,null,null,null,null,null,null,"SUNA_V2   ","   UV absorption to derive nitrate and bisulfide (SATLANTIC)   "]
[null,null,null,null,null,null,null,null,null,null,null,null,null,null,null,"ISUS   ","   Nitrate (MBARI)   "]
[null,null,null,null,null,null,null,null,null,null,null,null,null,null,null,"ISUS_V3   ","   Nitrate (SATLANTIC)   "]
[null,null,null,null,null,null,null,null,null,null,null,null,null,null,null,"C_STAR   ","   Transmissometer   "]
[null,null,null,null,null,null,null,null,null,null,null,null,null,null,null,"C_ROVER   ","   Transmissometer (WETLABS)   "]
[null,null,null,null,null,null,null,null,null,null,null,null,null,null,null,"DURA   ","   pH (MBARI)   "]
[null,null,null,null,null,null,null,null,null,null,null,null,null,null,null,"SATLANTIC_OCR500   ","   Multispectral radiometer (SATLANTIC)   "]
[null,null,null,null,null,null,null,null,null,null,null,null,null,null,null,"SATLANTIC_OCR504   ","   Multispectral radiometer (SATLANTIC)   "]
[null,null,null,null,null,null,null,null,null,null,null,null,null,null,null,"SATLANTIC_OCR507   ","   Multispectral radiometer (SATLANTIC)   "]
[null,null,null,null,null,null,null,null,null,null,null,null,null,null,null,"FLBB   ","   Fluorescence and Backscatter   "]
[null,null,null,null,null,null,null,null,null,null,null,null,null,null,null,"FLBB_AP2   ","   Fluorescence and Backscatter   "]
[null,null,null,null,null,null,null,null,null,null,null,null,null,null,null,"FLNTU   ","   Fluorescence and Turbidity   "]
[null,null,null,null,null,null,null,null,null,null,null,null,null,null,null,"ECO_PUCK   ","   Optical sensor (WETLABS)   "]
[null,null,null,null,null,null,null,null,null,null,null,null,null,null,null,"ECO_[FL]_[BB]_[BB2]_[TRIPLET]_[CD]_[NTU]_[VSF]   ","   WETLABS optical sensor packages   "]
[null,null,null,null,null,null,null,null,null,null,null,null,null,null,null,"RAFOS   ","   Receiver mounted on some floats for geopositioning under ice using RAFOS sound sources in the array in the Weddell Sea (Location derivation is done in Delayed Mode for under ice floats equipped with RAFOS receivers).   "]
[null,null,null,null,null,null,null,null,null,null,null,null,null,null,null,"PAL_UW   ","   UW Passive acoustic listener   "]
[null,null,null,null,null,null,null,null,null,null,null,null,null,null,null,"EM   ","   Electromagnetic sensor package to measure velocity   "]

{"sheet":"Deployment file Ids ","index":2,"n_rows":14,"n_cols":3,"rows_kept":14,"cut":false,"hidden":false,"merged":[]}
["Deployment file Id","Include Coriolis decoder versions","Update date: 20160712"]
[1,"4.23, 4.51","PROVOR CTS3.1 & Arvor Argos"]
[2,"5.9, 5.91, 5.92, 6.01","PROVOR ProvBioII Remocean"]
[3,"4.42, 4.44, 4.45","PROVOR CTS3.1 - DO Argos"]
[4,"5.7, 5.71, 5.72","PROVOR CTS3 - DO Iridium"]
[5,"5.4, 5.41, 5.42","ARVOR Iridium"]
[6,4.5199999999999996,"ARVOR ARN Argos"]
[7,"5.6, 5.61, 5.62, 5.63","ARVOR Deep"]
[8,4.53,"ARVOR Argos mode ASFAR"]
[9,4.54,"ARVOR-DO ARN Argos"]
[10,"5.43, 5.44","ARVOR ARN Iridium"]
[101,"all APEX Argos with a CTD only","APEX Argos CTD"]
[201,"1.0","NOVA"]
[202,"2.0","DOVA"]